[Event "USA Championship Women 2022"]
[Site "Saint Louis"]
[Date "2022.10.12"]
[Round "7.3"]
[White "Tokhirjonova, Gulrukhbegim"]
[Black "Abrahamyan, Tatev"]
[Result "1-0"]
[ECO "C02"]
[WhiteElo "2336"]
[BlackElo "2308"]
[Annotator "TA"]
[PlyCount "73"]
[EventDate "2022.09.05"]
[EventType "tourn"]
[EventCountry "USA"]
[SourceTitle "playchess.com"]
[Source "ChessBase"]
[SourceQuality "1"]
[TimeControl "40/5400+30:1800+30"]

{[%evp 15,73,0,16,12,0,0,24,0,0,-3,9,0,3,-12,-16,-37,-22,-30,-11,-121,57,66,65,67,58,63,121,112,128,122,134,134,195,163,167,152,192,186,183,174,182,185,214,194,227,223,215,207,202,208,267,269,296,296,466,445,421,413,415,414]} 1. e4 {[%emt 0:00:23]} e6 {[%emt 0:00:04]} 2. d4 {[%emt 0:00:13]} d5 {[%emt 0:00:03]} 3. e5 {[%emt 0:00:09]} c5 {[%emt 0:00:05]} 4. c3 {[%emt 0:00:07]} Nc6 {[%emt 0:00:02]} 5. Nf3 {[%emt 0:00:17]} Bd7 {[%emt 0:00:10]} 6. Be2 {[%emt 0:00:51]} Nge7 {[%emt 0:00:27]} 7. Na3 {[%emt 0:02:24]} Ng6 {[%emt 0:10:42]} 8. Nc2 {[%emt 0:04:05]} Be7 {[%emt 0:07:49]} 9. g3 {[%emt 0:01:15] C02: French: Advance Variation.} cxd4 {[%emt 0:04:20]} 10. cxd4 {[%emt 0:01:38]} O-O {[%emt 0:01:26]} 11. h4 {[%emt 0:10:09] White has an edge.} f6 {[%emt 0:03:31]} 12. h5 {[%emt 0:02:00]} Nh8 {[%emt 0:00:07]} 13. Bf4 {[%emt 0:00:40]} Nf7 {[%emt 0:06:02]} 14. Bd3 {[%emt 0:01:38] [#]} Rc8 $146 {[%emt 0:23:57]} ({Predecessor:} 14... fxe5 15. dxe5 Qa5+ 16. Kf1 Qb6 17. Qe2 Qxb2 18. Kg2 Qb6 19. Rab1 Qc7 20. Rbe1 Bc5 21. Bxh7+ Kxh7 {½-½ (50) Skawinski,A (2425)-Heberla,B (2569) Poland 2018}) 15. Qe2 {[%emt 0:07:22]} fxe5 {[%emt 0:11:37]} 16. dxe5 {[%emt 0:00:54]} Ng5 {[%emt 0:00:20] aiming for ...Nxf3+.} 17. Nh4 {[%emt 0:19:05]} (17. Nd2 $11 {keeps the balance.}) 17... Nb4 $2 {[%emt 0:08:29]} ({Better is} 17... Ne4 $17 {Strongly threatening ...Qa5+.} 18. Nf3 (18. Bxe4 $2 dxe4 19. Kf1 Nxe5 $19) 18... Nc5) 18. Nxb4 $14 {[%emt 0:01:57]} Bxb4+ {[%emt 0:00:02]} 19. Kf1 {[%emt 0:00:10]} Ne4 {[%emt 0:01:40]} 20. Kg2 $1 {[%emt 0:03:26]} Bc5 {[%emt 0:03:17] White leaves nothing to chance now.} (20... Bd2 $14 21. Bxe4 Bxf4) 21. Raf1 $1 $16 {[%emt 0:02:39]} ({And not} 21. Bxe4 dxe4 22. Rac1 Qe7 $15) 21... Be7 {[%emt 0:06:25][%cal Of8f4] [#]} 22. Ng6 {[%emt 0:11:54][%mdl 512]} Rf7 {[%emt 0:00:22]} (22... hxg6 $2 23. hxg6 Rf5 24. Qg4 $18) 23. Qg4 {[%emt 0:00:25]} (23. Bxe4 $6 dxe4 24. Nxe7+ Qxe7 $11) 23... Nc5 {[%emt 0:05:01]} (23... hxg6 24. hxg6 Rf5 25. Bxe4 dxe4 26. Rh7 $18) (23... Qb6 $16) 24. Nxe7+ {[%emt 0:03:45]} Qxe7 {[%emt 0:02:27] [#]} 25. Bg6 {[%emt 0:00:54][%mdl 512]} Bc6 {[%emt 0:00:26]} (25... hxg6 {gets mated.} 26. hxg6 Rf5 27. Qh3) (25... Rf5 26. Bxf5) 26. Bxf7+ {[%emt 0:02:19]} Qxf7 {[%emt 0:00:05]} 27. Rd1 {[%emt 0:01:47][%cal Bf1d1,Bd1d4,Bd4f4][%mdl 32] Inhibits Nd3.} Rf8 {[%emt 0:00:32]} 28. Rd4 {[%emt 0:01:09]} Kh8 {[%emt 0:01:46]} 29. f3 {[%emt 0:01:42]} Nd7 {[%emt 0:00:31]} 30. h6 {[%emt 0:01:31]} g6 {[%emt 0:00:13]} 31. Re1 {[%emt 0:00:08]} Qe8 {[%emt 0:01:11]} 32. Bd2 {[%emt 0:01:36][%cal Bf4d2,Bd2c3,Bc3e5][%mdl 32]} Rf5 {[%emt 0:00:46]} 33. Rf4 {[%emt 0:02:07] And now Rxf5 would win.} ({Don't play} 33. f4 $6 Nc5 34. Bb4 b6 $18) 33... Rh5 {[%emt 0:00:57]} 34. Rh1 {[%emt 0:00:48]} Nxe5 {[%emt 0:00:45]} (34... Rxh1 {was called for.} 35. Kxh1 Bb5) 35. Bc3 $18 {[%emt 0:01:40] Threatening mate with Rxh5.} Kg8 {[%emt 0:00:30] [#]} 36. Qxh5 {[%emt 0:02:39]} gxh5 {[%emt 0:00:18]} 37. Bxe5 {[%emt 0:00:04] Weighted Error Value: White=0.11 (very precise) /Black=0.32} 1-0

[Event "USA Championship Women 2022"]
[Site "Saint Louis"]
[Date "2022.10.12"]
[Round "7.4"]
[White "Lee, Alice"]
[Black "Wu, Rochelle"]
[Result "0-1"]
[ECO "D15"]
[WhiteElo "2263"]
[BlackElo "2317"]
[Annotator "TA"]
[PlyCount "150"]
[EventDate "2022.09.05"]
[EventType "tourn"]
[EventCountry "USA"]
[SourceTitle "playchess.com"]
[Source "ChessBase"]
[SourceQuality "1"]
[TimeControl "40/5400+30:1800+30"]

{[%evp 10,150,31,24,26,15,26,-15,-6,-50,-19,-54,-43,-76,-5,-106,-97,-91,-94,-109,-108,-129,-128,-128,-95,-106,-83,-83,-89,-90,-87,-92,-106,-92,-80,-77,-76,-85,-72,-79,-75,-86,-83,-90,-89,-90,-83,-92,-103,-103,-101,-97,-83,-83,-83,-83,-83,-83,-83,-83,-83,-83,-83,-84,-83,-83,-83,-83,-83,-83,-83,-83,-67,-83,-67,-67,-67,-67,-67,-67,-67,-67,-67,-67,-67,-67,-67,-67,-67,-67,-67,-67,-67,-67,-28,-28,-28,-60,-60,-60,-60,-83,-83,-226,-226,-226,-226,-226,-226,-226,-226,-226,-226,-1689,-1677,-5837,-5837,-12550,-5172,-4434,-241,-12793,-11318,-12793,-1657,-1614,-1517,-1549,-1483,-12846,-12627,-12842,-12843,-12849,-4602,-12825,-11881,-29938,-29939,-29943,-29941,-29984,-29985]} 1. d4 {[%emt 0:00:01]} d5 {[%emt 0:00:07]} 2. c4 {[%emt 0:00:04]} c6 {[%emt 0:00:09]} 3. Nf3 {[%emt 0:00:06]} Nf6 {[%emt 0:00:07]} 4. e3 {[%emt 0:00:05]} Bf5 {[%emt 0:00:06]} 5. Nc3 {[%emt 0:00:06]} a6 {[%emt 0:00:20]} 6. Qb3 {[%emt 0:07:42]} b5 {[%emt 0:00:44] D15: Slav Defence: 4 Nc3 a6 and gambit lines after 4 Nc3 dxc4.} 7. cxd5 {[%emt 0:00:26]} cxd5 {[%emt 0:00:06]} 8. Ne5 {[%emt 0:03:32]} e6 {[%emt 0:08:06] The position is equal.} 9. f3 {[%emt 0:07:46]} Nfd7 {[%emt 0:05:58] White must now prevent ...Nxe5.} 10. Nxd7 {[%emt 0:12:06]} (10. Bd3 {is interesting.} Nxe5 11. Bxf5 Qg5 12. Qc2) 10... Nxd7 {[%emt 0:02:49] [#]} 11. Bd2 $146 {[%emt 0:10:12]} ({Predecessor:} 11. e4 dxe4 12. fxe4 Bg6 13. a3 Be7 14. Be3 O-O 15. Be2 Rc8 16. Rd1 Qa5 17. O-O Nf6 18. e5 Ne4 19. Nxe4 Bxe4 20. Rc1 Rc7 21. Rxc7 Qxc7 22. Bd3 {½-½ (22) Ritscher,J (2322)-Henrich,H (2271) Hamburg 2013}) 11... Bd6 {[%emt 0:02:25]} ({Black should try} 11... Rc8 $1 $17 {And now ...b4 would win.} 12. Rc1 (12. e4 dxe4 13. fxe4 Bg6 $17) 12... Bd6) 12. g3 {[%emt 0:09:09]} (12. Nxd5 $11 O-O 13. Bb4 Qh4+ 14. Kd1 Bxb4 15. Nxb4) 12... O-O $17 {[%emt 0:03:31]} 13. Bg2 {[%emt 0:01:37]} Rc8 {[%emt 0:02:56][%cal Ba8c8,Bc8c4,Bc4b4][%mdl 32] Black is more active.} 14. e4 {[%emt 0:03:25]} dxe4 {[%emt 0:06:19]} 15. fxe4 {[%emt 0:00:53]} Bg6 {[%emt 0:07:43]} 16. O-O {[%emt 0:09:07]} e5 {[%emt 0:07:30]} 17. Be3 {[%emt 0:02:07]} exd4 {[%emt 0:03:57]} 18. Bxd4 {[%emt 0:00:07]} Rc4 {[%emt 0:00:33]} 19. Bf2 {[%emt 0:03:45]} Nc5 {[%emt 0:06:18]} 20. Bxc5 {[%emt 0:01:02]} Bxc5+ {[%emt 0:00:05]} 21. Kh1 {[%emt 0:00:05]} Rb4 {[%emt 0:06:09]} 22. Qc2 {[%emt 0:00:47]} Bd4 {[%emt 0:01:37]} 23. a4 {[%emt 0:10:03]} Rc4 {[%emt 0:10:43]} 24. axb5 {[%emt 0:00:43]} axb5 {[%emt 0:00:09]} 25. Rad1 {[%emt 0:03:50]} Qg5 {[%emt 0:02:58]} 26. Qd3 {[%emt 0:05:55][%cal Oc3b5]} Bxc3 {[%emt 0:05:41]} 27. bxc3 {[%emt 0:00:01]} Qc5 {[%emt 0:01:26]} 28. Qd7 {[%emt 0:01:37]} Rxc3 {[%emt 0:03:02] Strongly threatening ...b4.} 29. Rd5 {[%emt 0:00:06]} Qe3 {[%emt 0:03:57]} 30. Rxb5 {[%emt 0:00:52]} Rc1 {[%emt 0:04:06]} 31. Rb1 {[%emt 0:00:27]} Rxb1 {[%emt 0:00:12]} 32. Rxb1 {[%emt 0:00:02]} Bxe4 {[%emt 0:00:07]} 33. Rd1 {[%emt 0:01:53]} h5 {[%emt 0:01:58]} 34. Qd2 {[%emt 0:01:00]} Bxg2+ {[%emt 0:01:16]} 35. Qxg2 {[%emt 0:00:03][%mdl 4096] Endgame KQR-KQR} Rc8 {[%emt 0:00:36]} 36. Qd5 {[%emt 0:01:45]} Rc1 {[%emt 0:02:32]} 37. Rxc1 {[%emt 0:00:23]} Qxc1+ {[%emt 0:00:03] KQ-KQ} 38. Kg2 {[%emt 0:00:05]} Qc2+ {[%emt 0:00:18]} 39. Kg1 {[%emt 0:00:09]} Qg6 {[%emt 0:00:17]} 40. Kg2 {[%emt 0:02:27]} Kh7 {[%emt 0:00:39]} 41. Kh1 {[%emt 0:32:19]} f6 {[%emt 0:04:43]} 42. h4 {[%emt 0:00:00]} Qb1+ {[%emt 0:01:12]} ({But not} 42... Qxg3 43. Qxh5+ Kg8 44. Qe8+ Kh7 45. Qh5+ Kg8 46. Qe8+ Kh7 47. Qh5+ $11) 43. Kh2 {[%emt 0:00:00]} Qc2+ {[%emt 0:00:34]} 44. Kg1 {[%emt 0:00:00]} Kg6 {[%emt 0:00:10]} 45. Qe6 {[%emt 0:00:00]} Qf5 {[%emt 0:02:26]} 46. Qe8+ {[%emt 0:00:00]} Kh7 {[%emt 0:00:05] ...Qe5 is the strong threat.} 47. Kg2 {[%emt 0:00:00]} Qe5 {[%emt 0:04:09]} 48. Qc8 {[%emt 0:00:00]} Qe4+ {[%emt 0:00:27]} 49. Kh2 {[%emt 0:00:00]} Kg6 {[%emt 0:01:58]} 50. Qd7 {[%emt 0:00:00]} Qe2+ {[%emt 0:03:12]} 51. Kh1 {[%emt 0:00:00]} f5 {[%emt 0:00:22]} 52. Qd6+ {[%emt 0:00:00]} Kh7 {[%emt 0:00:09]} 53. Qc7 {[%emt 0:00:00]} Qf1+ {[%emt 0:01:54]} 54. Kh2 {[%emt 0:00:00]} Qf2+ {[%emt 0:00:06]} 55. Kh3 {[%emt 0:00:36]} Qg1 {[%emt 0:00:36][%cal Rg1h1]} 56. Qc6 {[%emt 0:00:14] Prevents Qh1+. White does not recover from this.} (56. Qb7 $17 {was the only chance.}) 56... Qf1+ $19 {[%emt 0:02:09]} 57. Kh2 {[%emt 0:00:05]} Qe2+ {[%emt 0:00:06]} 58. Kg1 {[%emt 0:05:33]} f4 $1 {[%emt 0:02:22]} 59. gxf4 {[%emt 0:00:13]} Qg4+ {[%emt 0:00:08]} 60. Kf1 {[%emt 0:01:07]} Qxf4+ {[%emt 0:00:07]} 61. Ke2 $2 {[%emt 0:00:39]} (61. Kg2) 61... Qxh4 {[%emt 0:00:39]} 62. Qc2+ {[%emt 0:00:14]} Kh6 {[%emt 0:00:05]} 63. Qd2+ {[%emt 0:00:10] [#]} Qg5 $1 {[%emt 0:00:06]} 64. Qd6+ {[%emt 0:00:08]} Qg6 $2 {[%emt 0:00:59]} (64... Kh7 65. Qd3+ Kh6 66. Qd6+ Qf6) 65. Qf4+ $2 {[%emt 0:00:29] [#]} (65. Qd2+ Qg5 66. Qd6+ Qf6 67. Qd7) 65... Kh7 $1 {[%emt 0:00:05]} 66. Qb8 {[%emt 0:00:29]} Qf5 {[%emt 0:00:23]} (66... h4 $142 67. Qb4 Qg2+ 68. Ke1 h3) 67. Qd8 {[%emt 0:00:16]} Qe5+ {[%emt 0:00:58]} 68. Kd1 {[%emt 0:00:38]} Qe4 {[%emt 0:00:18] Threatens to win with ...h4.} 69. Qa5 {[%emt 0:00:15]} Qg4+ {[%emt 0:00:27]} 70. Ke1 {[%emt 0:00:15]} h4 {[%emt 0:00:09] ( -> ...h3)} 71. Qc5 {[%emt 0:01:02]} Qe4+ {[%emt 0:01:01]} (71... h3 $142 72. Kf1 Qg2+ 73. Ke1 Qe4+ 74. Kd2 Qe6) 72. Kf2 {[%emt 0:00:14]} Kh6 {[%emt 0:01:00]} 73. Qd6+ {[%emt 0:01:20]} Qg6 {[%emt 0:00:47] Black mates.} 74. Qf4+ {[%emt 0:00:33]} Qg5 {[%emt 0:00:04]} 75. Qd6+ {[%emt 0:00:04]} Qf6+ {[%emt 0:00:05] Weighted Error Value: White=0.12 (very precise) /Black=0.06 (flawless)} 0-1

[Event "USA Championship Women 2022"]
[Site "Saint Louis"]
[Date "2022.10.12"]
[Round "7.5"]
[White "Eswaran, Ashritha"]
[Black "Foisor, Sabina-Francesca"]
[Result "1-0"]
[ECO "B12"]
[WhiteElo "2365"]
[BlackElo "2203"]
[Annotator "TA"]
[PlyCount "81"]
[EventDate "2022.09.05"]
[EventType "tourn"]
[EventCountry "USA"]
[SourceTitle "playchess.com"]
[Source "ChessBase"]
[SourceQuality "1"]
[TimeControl "40/5400+30:1800+30"]

{[%evp 9,81,5,9,0,12,6,45,0,0,0,0,-27,0,0,0,0,0,-5,-13,-36,-6,-7,-4,-8,54,49,31,44,29,38,33,34,84,71,114,97,113,100,359,365,359,355,407,407,542,621,653,625,748,708,720,688,657,573,639,567,573,441,563,559,836,690,587,431,989,934,1036,986,827,827,827,820,797,768]} 1. e4 {[%emt 0:00:12][%cal Be2e4,Be4e5][%mdl 32]} c6 {[%emt 0:00:14]} 2. d4 {[%emt 0:00:25]} d5 {[%emt 0:00:29]} 3. e5 {[%emt 0:00:15]} Bf5 {[%emt 0:00:04]} 4. h4 {[%emt 0:00:21]} h5 {[%emt 0:00:05]} 5. Bd3 {[%emt 0:01:02]} Bxd3 {[%emt 0:00:57]} 6. Qxd3 {[%emt 0:00:07][%cal Oe5e6] B12: Caro-Kann: Advance Variation.} Qa5+ {[%emt 0:01:25]} 7. Nd2 {[%emt 0:01:28][%cal Oe5e6]} Qa6 {[%emt 0:00:31]} 8. c4 {[%emt 0:01:03][%cal Oe5e6] [#] e6! is the strong threat. White is slightly better.} (8. e6 $5 {[%cal Re6f7]} Qxd3 9. exf7+ (9. cxd3 f6 $11) 9... Kxf7 10. cxd3 $14) 8... e6 {[%emt 0:04:05]} 9. Ngf3 {[%emt 0:01:27]} Nh6 {[%emt 0:04:45]} 10. b3 {[%emt 0:01:48]} Nd7 {[%emt 0:08:22]} 11. a4 {[%emt 0:01:21]} Nf5 {[%emt 0:08:43]} 12. O-O {[%emt 0:04:06]} Be7 {[%emt 0:04:55] 12...Bb4 deserves study.} 13. g3 {[%emt 0:05:27]} c5 {[%emt 0:14:12] [#]} 14. Qc3 $146 {[%emt 0:06:46]} ({Predecessor:} 14. Ba3 g6 15. Qb1 cxd4 16. cxd5 Bxa3 17. dxe6 Qxe6 18. Rxa3 O-O 19. Re1 Rfe8 20. b4 {½-½ (32) Jackson,J (2383)-Houska,J (2419) Daventry 2019}) 14... cxd4 {[%emt 0:11:51]} 15. Nxd4 {[%emt 0:02:47]} Nxd4 {[%emt 0:05:24]} 16. Qxd4 {[%emt 0:00:05]} Qb6 {[%emt 0:00:15]} (16... f6 $11) 17. Qxb6 $14 {[%emt 0:03:05]} Nxb6 {[%emt 0:03:21]} 18. a5 {[%emt 0:00:16]} Nd7 {[%emt 0:00:27]} 19. cxd5 {[%emt 0:00:29]} exd5 {[%emt 0:06:12]} 20. Nf3 {[%emt 0:03:27]} Rc8 {[%emt 0:05:29]} (20... Nc5 $14) 21. Rd1 {[%emt 0:03:09]} Rc3 {[%emt 0:02:01]} 22. Kg2 {[%emt 0:00:06]} Nc5 {[%emt 0:05:07]} 23. Nd4 {[%emt 0:03:28]} Nxb3 $2 {[%emt 0:00:26][%mdl 8192] Black cannot hold the game after this.} (23... Kd7 $16) 24. Bb2 $18 {[%emt 0:00:07]} Nxd4 {[%emt 0:03:21]} 25. Bxc3 {[%emt 0:00:06]} Ne6 {[%emt 0:01:35]} 26. Rxd5 {[%emt 0:00:14]} Bxh4 {[%emt 0:00:03]} 27. Rb5 {[%emt 0:00:19] White is clearly winning.} Bd8 {[%emt 0:01:11]} 28. Rxb7 {[%emt 0:00:08]} h4 {[%emt 0:00:04]} 29. Rd1 {[%emt 0:00:55]} a6 {[%emt 0:01:05]} 30. Rd6 {[%emt 0:00:56]} Rh6 {[%emt 0:00:48]} 31. Bb4 {[%emt 0:01:22]} Rg6 {[%emt 0:01:29]} 32. Bd2 {[%emt 0:01:15]} hxg3 {[%emt 0:01:16]} 33. fxg3 {[%emt 0:00:05] aiming for Rb8.} Rg4 {[%emt 0:00:41]} 34. Rb8 {[%emt 0:02:57]} Ke7 {[%emt 0:03:43]} 35. Rxa6 {[%emt 0:00:25]} Bc7 {[%emt 0:00:23]} 36. Rb7 {[%emt 0:00:23] And now Bb4+ would win.} Re4 {[%emt 0:01:18]} (36... Kd7 $142 37. Be3 Re4) 37. Bb4+ {[%emt 0:00:35]} Kd8 {[%emt 0:00:54]} 38. Ra8+ {[%emt 0:01:32]} Kd7 {[%emt 0:00:02]} 39. Bd6 {[%emt 0:00:18]} Kc6 {[%emt 0:00:29] [#]} 40. Rxc7+ $1 {[%emt 0:00:09]} Nxc7 {[%emt 0:00:14]} 41. Rc8 {[%emt 0:30:03] Weighted Error Value: White=0.34/Black=0.44} 1-0

[Event "USA Championship Women 2022"]
[Site "Saint Louis"]
[Date "2022.10.12"]
[Round "7.6"]
[White "Yan, Ruiyang"]
[Black "Krush, Irina"]
[Result "1/2-1/2"]
[ECO "B33"]
[WhiteElo "2220"]
[BlackElo "2432"]
[Annotator "TA"]
[PlyCount "102"]
[EventDate "2022.09.05"]
[EventType "tourn"]
[EventCountry "USA"]
[SourceTitle "playchess.com"]
[Source "ChessBase"]
[SourceQuality "1"]
[TimeControl "40/5400+30:1800+30"]

{[%evp 19,102,0,10,6,12,9,8,7,0,0,6,7,17,10,12,4,7,0,0,-1,10,2,14,-27,0,0,8,8,10,7,9,9,10,8,11,12,12,0,0,0,0,0,0,-45,-20,-108,-110,-108,-106,-260,-245,-1450,0,0,0,0,0,0,0,0,0,0,0,-98,-98,-98,-98,-98,-98,-89,0,0,0,0,0,0,0,0,0,0,0,0,0,0,0]} 1. e4 {[%emt 0:00:03]} c5 {[%emt 0:01:58]} 2. Nf3 {[%emt 0:00:08]} Nc6 {[%emt 0:00:10]} 3. d4 {[%emt 0:00:15]} cxd4 {[%emt 0:00:10]} 4. Nxd4 {[%emt 0:00:06]} Nf6 {[%emt 0:00:11]} 5. Nc3 {[%emt 0:00:06]} e5 {[%emt 0:00:10]} 6. Ndb5 {[%emt 0:00:06]} d6 {[%emt 0:00:09]} 7. Nd5 {[%emt 0:00:07]} Nxd5 {[%emt 0:00:18]} 8. exd5 {[%emt 0:00:07]} Nb8 {[%emt 0:00:11]} 9. a4 {[%emt 0:00:06]} Be7 {[%emt 0:00:22]} 10. Be2 {[%emt 0:00:10]} O-O {[%emt 0:00:11]} 11. O-O {[%emt 0:00:05] B33: Sicilian: Pelikan and Sveshnikov Variations.} Nd7 {[%emt 0:00:21]} 12. Kh1 {[%emt 0:00:13] 12.Bd2 injects fresh life into this line.} f5 {[%emt 0:00:32]} 13. f4 {[%emt 0:00:08]} a6 {[%emt 0:00:15]} 14. Na3 {[%emt 0:00:06]} exf4 {[%emt 0:00:09] 14...Qc7 is vanishing.} 15. Bxf4 {[%emt 0:00:06]} Nc5 {[%emt 0:00:20]} 16. Nc4 {[%emt 0:00:40]} a5 {[%emt 0:00:11]} 17. c3 {[%emt 0:04:17]} Bd7 {[%emt 0:01:44] [#]} 18. Bf3 $146 {[%emt 0:16:56]} ({Predecessor:} 18. Re1 b5 19. axb5 Bxb5 20. Nd2 Bxe2 21. Qxe2 Bg5 22. Bxg5 Qxg5 23. Nf3 Qh5 24. Nd4 Qxe2 25. Rxe2 a4 {½-½ (25) Chukanov,I (2452)-Saidashev,A (2415) ICCF email 2017}) 18... Ra6 {[%emt 0:00:55]} 19. Re1 {[%emt 0:07:20]} b5 {[%emt 0:01:35]} 20. axb5 {[%emt 0:07:36]} Bxb5 {[%emt 0:00:11]} 21. Be2 {[%emt 0:01:53]} (21. Na3 $5 {[%cal Ra3b5]} Nd3 22. Qe2 Nxe1 23. Nxb5 Nxf3 24. gxf3 $17) 21... Ne4 {[%emt 0:04:16] Strongly threatening ...Nf2+.} (21... Bh4 $5 {[%cal Rh4e1]} 22. g3 Bg5 $11) 22. Rf1 {[%emt 0:01:54] Prevents Nf2+.} Bxc4 {[%emt 0:29:45]} 23. Bxc4 {[%emt 0:00:26]} Ra8 {[%emt 0:00:01]} 24. Bd3 {[%emt 0:02:21]} Bg5 {[%emt 0:09:18]} 25. Qc2 {[%emt 0:14:54]} Bxf4 {[%emt 0:14:42]} 26. Rxf4 {[%emt 0:00:16]} Qg5 {[%emt 0:00:04]} 27. Raf1 {[%emt 0:00:12]} Rae8 {[%emt 0:01:38]} 28. g3 {[%emt 0:15:35]} g6 {[%emt 0:03:10]} 29. Bxe4 {[%emt 0:03:18]} fxe4 {[%emt 0:00:09]} 30. Rxf8+ {[%emt 0:00:04]} Rxf8 {[%emt 0:00:09]} 31. Rxf8+ {[%emt 0:00:03]} Kxf8 {[%emt 0:00:10]} 32. Qxe4 $11 {[%emt 0:00:08][%mdl 4096] Endgame KQ-KQ} (32. Qd1 $11) 32... Qc1+ $17 {[%emt 0:00:21]} 33. Kg2 {[%emt 0:00:03]} Qxb2+ {[%emt 0:00:10]} 34. Kh3 $2 {[%emt 0:00:03] [#]} (34. Kf1 $17 {was called for.}) 34... Qf2 $1 $19 {[%emt 0:04:15]} ({Weaker is} 34... Qxc3 35. Qf4+ Ke7 36. Qh4+ Ke8 37. Qa4+ (37. Qxh7 Qc8+ 38. Kg2 Qc2+ 39. Kf3 Qd3+ 40. Kf2 Qd2+ 41. Kf1 Qxd5 $15) 37... Kd8 38. Qh4+ Kc8 39. Qxh7 $15) 35. Qc4 $2 {[%emt 0:02:20] [#]} (35. g4) 35... Qa7 $2 {[%emt 0:16:47]} ({Better is} 35... h5 $1 $19 36. Qc8+ Kg7 37. Qd7+ Kh6 38. Qxd6 Qf1+ 39. Kh4 Qf5) 36. Qf4+ {[%emt 0:02:58]} Ke8 {[%emt 0:00:36]} 37. Kg2 {[%emt 0:02:57]} ({Wrong is} 37. Qxd6 $2 Qd7+ 38. Qxd7+ Kxd7 $19) 37... Qc5 {[%emt 0:01:03][%csl LRc3,LRd5]} 38. Qa4+ {[%emt 0:06:39]} Kd8 {[%emt 0:01:50]} 39. c4 {[%emt 0:00:48]} Qb4 {[%emt 0:09:01]} 40. Qc6 {[%emt 0:00:24]} a4 {[%emt 0:00:17]} 41. c5 {[%emt 0:31:28]} (41. Qa8+ $11 {remains equal.} Ke7 42. Qa7+ Kd8 43. Qa8+ Ke7 44. Qa7+ Kf6 45. Qd4+ Kf7 46. Qa7+ Kg8 47. Qa8+ Kg7 48. Qa7+ Kh8 49. Qa8+ Kg7 50. Qa7+ Kh8 51. Qf7 Qd2+ 52. Kf1 Qd3+ 53. Kg2 Qd2+ 54. Kh1 Qe1+ 55. Kg2 Qe2+ 56. Kh3 Qh5+ 57. Kg2 Qe2+ 58. Kh3) 41... Qxc5 $17 {[%emt 0:30:42]} ({Much worse is} 41... dxc5 $6 42. Qf6+ Ke8 43. Qe6+ Kd8 44. Qf6+ Ke8 45. Qe6+ Kf8 46. Qf6+ Kg8 47. Qe6+ Kh8 48. Qf6+ Kg8 49. Qe6+ Kh8 50. Qf6+ Kg8 $11) 42. Qxa4 {[%emt 0:00:05]} Qxd5+ {[%emt 0:00:09]} 43. Kf2 {[%emt 0:01:07]} Qc5+ {[%emt 0:00:00]} 44. Kg2 {[%emt 0:00:00]} Ke7 {[%emt 0:00:00]} (44... Kc7 $17 {Hoping for ...Qc6+.} 45. Qh4 h5) 45. Qh4+ $11 {[%emt 0:00:00] The position is equal.} Ke6 {[%emt 0:00:00]} 46. Qxh7 {[%emt 0:00:00]} Qc2+ {[%emt 0:00:00]} 47. Kg1 {[%emt 0:00:00]} Qb1+ {[%emt 0:00:00]} 48. Kf2 {[%emt 0:00:00]} Qc2+ {[%emt 0:00:00]} 49. Kg1 {[%emt 0:00:00]} Qb1+ {[%emt 0:00:00]} 50. Kf2 {[%emt 0:00:00]} Qc2+ {[%emt 0:00:00]} 51. Kg1 {[%emt 0:00:00]} Qb1+ {[%emt 0:00:17] Weighted Error Value: White=0.32/Black=0.12 (very precise)} 1/2-1/2